bitfinex-derivatives/quotes_ETHF0:USTF0_20250727
["timestamp","ask_amount","ask_price","bid_price","bid_amount"]
[1753631376181,1.6132,3819.9,3819.8,1.53372]
[1753631376488,1.6132,3819.9,3819.8,6.53372]
[1753631376489,0.2,3819.9,3819.8,6.53372]
[1753631377282,1.1175,3820.6,3820.5,0.92152]
[1753631377489,1.4132,3820.6,3820.5,1.53362]
[1753631377684,2.81971186,3820.6,3820.5,1.53362]
[1753631378189,2.81971186,3820.6,3820.5,1.22362]
[1753631378389,3.02631186,3820.6,3820.5,1.02792]
[1753631378590,1.6198,3820.6,3820.5,1.02792]
[1753631378885,0.9175,3820.6,3820.5,1.53362]
[1753631379785,1.40651186,3821.1,3821.0,1.0103]
[1753631379988,1.40651186,3821.2,3821.1,1.23144]
[1753631380185,0.2957,3821.6,3821.4,0.3982]
[1753631380392,1.2132,3821.6,3821.5,1.0103]
[1753631380889,0.9175,3821.6,3821.5,1.53349]
[1753631381482,1.2132,3821.6,3821.5,1.53349]
[1753631381682,2.14287,3821.6,3821.5,0.3021]
[1753631382296,1.4132,3821.6,3821.5,1.22349]
[1753631382488,1.1175,3821.6,3821.5,1.53349]
[1753631382687,1.4132,3821.6,3821.5,1.53349]
[1753631383494,0.9285,3821.9,3821.8,1.53345]
[1753631383686,1.6132,3821.9,3821.8,0.7003]
[1753631383885,1.1175,3821.9,3821.8,1.53345]
[1753631384085,0.2,3821.9,3821.8,4.74125]
[1753631384284,1.1355,3822.3,3822.2,1.0103]
[1753631384489,2.16318374,3822.3,3822.2,1.0103]
[1753631384690,1.96296374,3822.3,3822.2,1.0103]
[1753631384989,2.39056374,3822.3,3822.2,1.0103]
[1753631385191,1.05088374,3822.3,3822.2,1.0103]
[1753631385392,1.27306374,3822.3,3822.2,1.0103]
[1753631385693,2.68626374,3822.3,3822.2,1.0103]
[1753631385898,2.26268,3822.3,3822.2,1.0103]
[1753631386095,2.26268,3822.3,3822.2,0.5046]
[1753631386296,1.44063,3821.9,3821.8,4.2181]
[1753631387099,1.93633,3821.9,3821.8,1.0103]
[1753631387792,1.4132,3821.9,3821.8,1.53345]
[1753631387992,1.1175,3821.9,3821.8,1.53345]
[1753631388198,1.64063,3821.9,3821.8,1.53345]
[1753631388602,1.93633,3821.9,3821.8,1.0103]
[1753631388792,2.24473,3821.9,3821.8,1.53345]
[1753631389403,1.7216,3821.6,3821.3,3.73101]
[1753631389702,2.2448,3821.4,3821.3,3.2078]
[1753631390097,2.2448,3821.4,3821.3,4.23561]
[1753631390297,1.9364,3821.4,3821.3,1.53351]
[1753631390798,2.2448,3821.4,3821.3,1.0103]
[1753631391205,1.4132,3821.4,3821.3,1.53351]
[1753631394197,1.1175,3821.7,3821.6,0.52317]
[1753631394398,0.9175,3821.7,3821.6,1.53347]
[1753631395001,1.1175,3821.7,3821.6,1.53347]
[1753631395202,0.3009,3821.7,3821.6,1.53347]
[1753631395504,1.4132,3822.0,3821.9,1.53343]
[1753631396901,0.9175,3822.0,3821.9,1.53343]
[1753631397097,1.7396,3822.3,3822.2,0.72559]
[1753631397702,1.4312,3822.3,3822.2,1.52159]
[1753631397909,2.23638,3822.3,3822.2,1.21309]
[1753631399617,1.7133,3822.3,3822.2,1.21309]
[1753631399820,2.23638,3822.3,3822.2,1.21309]
[1753631400311,2.20603,3821.9,3821.8,0.52313]
[1753631401115,2.20603,3821.9,3821.8,1.00173]
[1753631401310,1.6829,3821.9,3821.8,1.00173]
[1753631401519,1.4008,3821.9,3821.8,1.51373]
[1753631401718,1.92393,3821.9,3821.8,1.51373]
[1753631401918,1.4008,3821.9,3821.8,1.51373]
[1753631402509,1.0961,3821.9,3821.6,3.2078]
[1753631402713,2.20606,3821.7,3821.6,3.73097]
[1753631403013,1.73189,3821.6,3821.5,0.52317]
[1753631403213,2.20609,3821.6,3821.5,0.52317]
[1753631403516,2.20609,3821.6,3821.5,1.20527]
[1753631403819,2.20609,3821.6,3821.5,1.51377]
[1753631404518,2.20609,3821.6,3821.5,0.9906]
[1753631404718,2.20609,3821.6,3821.5,0.6821]
[1753631404921,2.20609,3821.6,3821.5,1.20529]
[1753631405119,2.20609,3821.6,3821.5,0.6821]
[1753631406115,2.20609,3821.6,3821.0,1.30813]
[1753631406116,0.7246,3821.2,3821.1,0.2035]
[1753631406321,1.0961,3821.5,3821.4,0.9135]
[1753631406615,1.0961,3821.8,3821.7,1.51376]
[1753631406810,1.4008,3821.8,3821.7,1.51376]
[1753631407217,1.92395,3821.8,3821.7,1.51376]
[1753631407618,0.99739,3821.6,3821.5,0.1868]
[1753631407916,2.20609,3821.6,3821.5,0.4786]
[1753631408116,2.20609,3821.6,3821.5,0.6821]
[1753631408318,1.4008,3821.2,3821.1,1.22204]
[1753631408822,1.24777,3821.6,3821.5,1.51379]
[1753631409221,0.00494069,3821.9,3821.8,1.51375]
[1753631409425,0.00494069,3821.9,3821.8,4.72155]
[1753631411221,1.40574069,3821.9,3821.8,1.51375]
[1753631411422,0.49324069,3821.9,3821.8,4.72155]
[1753631412127,0.00494069,3821.9,3821.8,4.72155]
[1753631412923,0.29124069,3821.9,3821.8,4.72155]
[1753631413123,0.71114069,3821.9,3821.8,1.51375]
[1753631413423,0.71114069,3821.9,3821.8,4.72155]
[1753631414132,0.91314069,3821.9,3821.8,4.72155]
[1753631414527,0.00494069,3821.9,3821.8,4.72155]
[1753631415125,0.29124069,3821.9,3821.8,4.72155]
[1753631416136,0.00494069,3821.9,3821.8,4.72155]
[1753631416636,1.40574069,3821.9,3821.8,4.72155]
[1753631417437,1.40574069,3821.9,3821.8,1.51375]
[1753631418434,1.40574069,3821.9,3821.8,4.72155]
[1753631419334,1.92887069,3821.9,3821.8,4.72155]
[1753631419638,1.40574069,3821.9,3821.8,4.72155]
[1753631420727,1.92887069,3821.9,3821.8,4.72155]
[1753631422035,1.40574069,3821.9,3821.8,4.72155]
[1753631423137,1.92887069,3821.9,3821.8,4.72155]
[1753631423739,1.92887069,3821.9,3821.8,1.51375]
[1753631425041,1.40574069,3821.9,3821.8,1.51375]
[1753631425337,1.92887069,3821.9,3821.8,1.51375]
[1753631427843,2.23517069,3821.9,3821.8,1.51375]
[1753631429043,1.7327,3821.5,3821.4,3.6928]
[1753631429733,1.4264,3821.5,3821.0,3.4921]
[1753631429933,1.7327,3821.1,3821.0,3.4921]
[1753631430333,2.25594,3821.1,3821.0,3.4921]
[1753631430539,1.21237,3820.9,3820.8,0.496]
[1753631430739,2.25597,3820.9,3820.8,0.485]
[1753631431046,1.2124,3820.8,3820.7,0.52328]
[1753631431242,0.82811,3820.7,3820.5,0.2953]
[1753631431446,1.7327,3820.6,3820.5,0.6861]
[1753631431742,2.25601,3820.6,3820.5,1.20942]
[1753631432543,2.25601,3820.6,3820.5,0.2843]
[1753631432742,2.25604,3820.5,3820.4,0.52332]
[1753631432936,1.94974,3820.5,3820.4,0.52332]
[1753631433153,2.25604,3820.5,3820.4,0.52332]
[1753631433449,2.25604,3820.5,3820.4,0.80762]
[1753631434148,2.25604,3820.5,3820.4,0.52332]
[1753631434347,0.52336,3820.3,3820.2,0.52335]
[1753631434541,2.25606,3820.3,3820.2,0.52335]
[1753631434743,2.25606,3820.2,3820.1,0.52337]
[1753631434944,2.25606,3820.2,3820.1,0.52338]
[1753631435645,2.25606,3820.2,3820.1,0.80768]
[1753631436050,1.7327,3820.2,3820.1,1.50478]
[1753631436349,2.25606,3820.2,3820.1,1.50478]
[1753631437246,1.7327,3820.2,3820.1,1.50478]
[1753631437746,2.25606,3820.2,3820.1,1.50478]
[1753631437950,2.25606,3820.2,3820.1,0.52338]
[1753631438151,1.2125,3819.9,3819.8,1.00143488]
[1753631438447,1.7327,3819.9,3819.8,1.40323488]
[1753631438638,1.7327,3819.9,3819.8,1.69853488]
[1753631438843,2.2561,3819.9,3819.8,1.69853488]
[1753631439244,1.7327,3819.9,3819.8,1.69853488]
[1753631439451,2.2561,3819.9,3819.8,1.69853488]
[1753631439646,2.2561,3819.9,3819.8,1.40323488]
[1753631440054,2.2561,3819.9,3819.8,1.69853488]
[1753631442152,2.2561,3819.9,3819.8,0.67872488]
[1753631442449,2.2561,3819.9,3819.8,0.47802488]
[1753631442848,2.2561,3819.9,3819.8,0.67872488]
[1753631443543,2.2561,3819.9,3819.8,0.87982488]
[1753631443950,2.2561,3819.9,3819.8,1.40324488]
[1753631445855,0.954,3819.9,3819.8,1.40324488]
[1753631446054,1.94975,3820.3,3820.2,1.50476]
[1753631446244,1.94975,3820.3,3819.8,0.71714488]
[1753631446245,2.25609,3820.0,3819.9,0.5234]
[1753631446449,1.7327,3820.0,3819.8,0.19372488]
[1753631446655,2.2561,3819.9,3819.8,0.19372488]
[1753631447454,2.2561,3819.9,3819.8,0.87982488]
[1753631447650,1.4264,3819.9,3819.8,1.69854488]
[1753631447857,0.9707,3820.3,3820.2,0.92516]
[1753631448050,0.9707,3820.3,3820.2,1.50476]
[1753631448251,3.2078,3820.6,3820.2,1.50476]
[1753631448252,3.8969,3820.6,3820.5,0.92512]
[1753631448452,4.6342,3820.6,3820.5,1.50472]
[1753631449057,0.3048,3820.9,3820.8,1.50468]
[1753631449254,0.3048,3821.2,3820.9,0.4018]
[1753631449459,0.9513,3821.4,3821.3,1.50461]
[1753631449650,1.7327,3821.4,3821.3,1.50461]
[1753631450351,0.7605,3821.4,3821.3,1.50461]
[1753631450560,0.7605,3821.7,3821.6,1.50457]
[1753631450759,0.3048,3821.7,3821.6,1.50457]
[1753631451453,0.7605,3821.7,3821.6,1.50457]
[1753631451958,0.3048,3821.7,3821.6,1.50457]
[1753631453063,0.00494069,3821.9,3821.8,1.50454]
[1753631454158,0.30974069,3821.9,3821.8,1.50454]
[1753631454479,2.26077069,3821.9,3821.8,0.6861]
[1753631454762,2.25587,3821.7,3821.6,1.20925]
[1753631455062,2.25587,3821.7,3821.6,0.2843]
[1753631455467,2.25587,3821.7,3821.6,0.485]
[1753631455656,1.4264,3821.4,3821.3,1.50461]
[1753631456060,1.9496,3821.4,3821.3,1.50461]
[1753631456458,2.2559,3821.4,3821.3,1.50461]
[1753631457368,2.2559,3821.4,3821.3,0.9814]
[1753631457662,1.4264,3820.9,3820.8,38.21728]
[1753631458059,1.4542,3820.9,3820.8,38.79318]
[1753631458256,1.7632,3820.9,3820.8,38.21728]
[1753631458564,2.28258,3820.8,3820.7,3.2078]
[1753631458765,1.7593,3820.6,3820.5,1.00692]
[1753631458966,1.7593,3820.6,3820.5,1.50212]
[1753631460964,1.7593,3821.0,3820.9,0.52327]
[1753631461165,1.4503,3821.3,3821.2,0.92611]
[1753631461566,1.1409,3821.3,3821.2,0.92611]
[1753631461873,1.1409,3821.3,3821.2,1.50201]
[1753631462068,0.3031,3821.3,3821.2,1.50201]
[1753631462468,0.7543,3821.3,3821.2,1.50201]
[1753631462767,0.9419,3821.3,3821.2,1.50201]
[1753631463167,1.97351,3821.3,3821.2,1.50201]
[1753631463471,2.28251,3821.3,3821.2,1.21321]
[1753631464168,2.28251,3821.3,3821.2,1.00681]
[1753631464473,2.28255,3821.1,3821.0,0.71974]
[1753631464667,1.7593,3821.1,3821.0,1.21324]
[1753631464967,2.28254,3821.1,3821.0,1.21324]
[1753631465173,1.4503,3821.1,3821.0,1.50204]
[1753631465569,0.3031,3821.1,3821.0,1.50204]
[1753631466068,1.4503,3821.1,3821.0,1.50204]
[1753631468165,1.7593,3821.1,3821.0,1.50204]
[1753631469578,2.28254,3821.1,3821.0,1.50204]
[1753631469967,1.7593,3821.1,3821.0,1.50204]
[1753631470168,2.28254,3821.1,3821.0,1.50204]
[1753631470467,2.28254,3821.1,3821.0,1.21324]
[1753631470667,1.7593,3821.1,3821.0,1.21324]
[1753631471070,0.71091,3820.7,3820.6,0.52329]
[1753631471271,1.21302,3820.6,3820.5,0.52331]
[1753631471568,1.7593,3820.6,3820.5,1.50211]
[1753631471973,1.4503,3820.6,3820.5,1.50211]
[1753631472372,0.6125,3820.9,3820.8,0.92618]
[1753631472575,1.4503,3820.9,3820.8,1.21498]
[1753631472873,1.97357,3820.9,3820.8,1.50208]
[1753631473074,2.28257,3820.9,3820.8,1.50208]
[1753631473769,0.6897,3820.5,3820.4,0.6917]
[1753631473979,1.7593,3820.5,3820.4,1.50213]
[1753631474273,2.28262,3820.5,3820.4,1.50213]
[1753631474472,2.28262,3820.5,3820.4,1.21333]
[1753631474666,1.7593,3820.5,3820.4,1.21333]
[1753631474866,1.7593,3820.5,3820.4,1.50213]
[1753631475476,1.4503,3820.5,3820.4,1.50213]
[1753631476167,0.309,3820.4,3820.0,0.2871]
[1753631476375,1.4562,3820.2,3820.1,1.50215]
[1753631476575,1.7593,3820.2,3820.1,1.50215]
[1753631476869,2.28266,3820.2,3820.1,1.50215]
[1753631477275,1.7593,3820.2,3820.1,1.50215]
[1753631477669,2.28266,3820.2,3820.1,1.50215]
[1753631478179,2.28266,3820.2,3819.8,1.50224488]
[1753631478180,0.9991,3819.9,3819.8,0.48082488]
[1753631478378,1.7593,3819.9,3819.8,0.19372488]
[1753631478568,1.7593,3819.9,3819.8,0.67732488]
[1753631478773,2.2827,3819.9,3819.8,0.67732488]
[1753631478971,2.2827,3819.9,3819.8,0.19372488]
[1753631479879,2.28274,3819.6,3819.5,3.2078]
[1753631480177,2.28277,3819.4,3819.3,0.52347]
[1753631480380,2.28277,3819.4,3819.3,1.69367]
[1753631480573,2.28277,3819.4,3819.3,1.99777]
[1753631480772,1.97377,3819.4,3819.3,1.99777]
[1753631481579,2.28277,3819.4,3819.3,0.52347]
[1753631481775,2.2828,3819.2,3819.1,21.7975]
[1753631482279,2.2828,3819.2,3819.1,22.2811]
[1753631482479,2.2828,3819.2,3819.1,22.4875]
[1753631482974,1.7593,3819.2,3819.1,22.7763]
[1753631483278,1.4503,3819.2,3819.1,23.2718]
[1753631485778,1.9738,3819.2,3819.1,23.2718]
[1753631485969,2.2828,3819.2,3819.1,22.7763]
[1753631486779,2.2828,3819.2,3819.1,22.9677]
[1753631487176,1.4503,3819.2,3819.1,23.2718]
[1753631487679,1.9738,3819.2,3819.1,23.2718]
[1753631488278,1.9738,3819.2,3819.1,1.9978]
[1753631488879,1.4503,3819.2,3819.1,1.9978]
[1753631489379,1.9738,3819.2,3819.1,1.9978]
[1753631489782,1.4503,3819.2,3819.1,1.9978]
[1753631490478,1.1325,3819.5,3819.4,1.81137]
[1753631490673,1.65596,3819.5,3819.4,2.00307]
[1753631490874,1.1325,3819.5,3819.4,2.00307]
[1753631491279,1.65596,3819.5,3819.4,2.00307]
[1753631491475,1.95166,3819.5,3819.4,2.00307]
[1753631493680,2.25666,3819.5,3819.4,2.00307]
[1753631493888,2.25668,3819.3,3819.2,21.228]
[1753631494286,2.25668,3819.3,3818.7,3.5031]
[1753631494492,2.25675,3818.9,3818.8,1.01523]
[1753631494684,1.4282,3818.9,3818.8,2.00313]
[1753631494989,0.4811,3819.2,3819.1,2.00311]
[1753631495289,3.95208384,3819.9,3819.8,1.21951]
[1753631495290,3.2078,3819.9,3819.8,1.21951]
[1753631495484,3.2078,3819.9,3819.8,1.81131]
[1753631495694,0.6995,3820.0,3819.9,1.2195]
[1753631495887,3.73109,3820.7,3820.6,0.5233]
[1753631496086,5.74698269,3820.7,3820.6,0.989]
[1753631496288,1.4504,3820.6,3820.5,0.81981]
[1753631496481,1.4282,3820.6,3820.5,2.00291]
[1753631496888,1.1325,3820.6,3820.5,2.00291]
[1753631497785,0.2828,3820.6,3820.5,2.00291]
[1753631498786,1.1325,3820.6,3820.5,2.00291]
[1753631498991,1.4282,3820.6,3820.5,2.00291]
[1753631499192,2.2565,3820.6,3820.5,2.00291]
[1753631499792,2.2565,3820.6,3820.5,1.01502]
[1753631499999,2.98566624,3820.6,3820.5,1.01502]
[1753631500199,2.2565,3820.6,3820.5,1.01502]
[1753631500402,2.98585682,3820.6,3820.5,1.01502]
[1753631501203,2.2565,3820.6,3820.5,1.01502]
[1753631501902,2.2565,3820.6,3820.5,1.51232]
[1753631502198,3.2078,3821.1,3820.6,0.4882]
[1753631502399,0.4811,3821.2,3821.1,1.51114]
[1753631502695,1.20984,3821.1,3821.0,21.295]
[1753631502900,2.25644,3821.1,3821.0,0.52324]
[1753631503692,0.1983,3820.6,3820.5,22.0868]
[1753631503993,0.6866,3820.6,3820.5,22.282]
[1753631504198,2.25651,3820.6,3820.5,22.80532]
[1753631504803,0.52335,3820.4,3820.2,0.2965]
[1753631505103,2.25655,3820.4,3820.3,0.4917]
[1753631505504,2.25655,3820.3,3820.2,0.52335]
[1753631506006,1.20997,3820.2,3820.1,1.01507]
[1753631506504,2.25657,3820.2,3820.1,1.21707]
[1753631507705,1.4375,3819.9,3819.8,0.4917]
[1753631508002,1.7332,3819.9,3819.8,0.4917]
[1753631508205,1.7332,3819.9,3819.8,0.6937]
[1753631508404,1.7332,3819.9,3819.8,0.989]
[1753631509008,2.2566,3819.9,3819.8,1.51241]
[1753631509404,1.7332,3819.9,3819.8,1.51241]
[1753631509603,1.7332,3819.9,3819.8,1.70411]
[1753631509804,2.2566,3819.9,3819.8,2.00301]
[1753631510704,1.7332,3819.9,3819.7,0.52342]
[1753631510912,2.25661,3819.8,3819.7,0.52342]
[1753631511997,1.21004,3819.7,3819.6,0.71863]
[1753631512201,1.7332,3819.7,3819.6,1.21713]
[1753631512402,1.7332,3819.7,3819.6,2.00303]
[1753631512598,1.4282,3819.7,3819.6,2.00303]
[1753631512808,2.25663,3819.7,3819.6,1.01513]
[1753631513203,2.25663,3819.7,3819.6,0.4917]
[1753631513404,2.25663,3819.7,3819.6,1.01514]
[1753631513807,2.25664,3819.6,3819.5,0.52345]
[1753631514404,2.25664,3819.6,3819.5,1.01515]
[1753631514607,1.7332,3819.6,3819.5,1.01515]
[1753631514807,1.4282,3819.6,3819.5,2.00395]
[1753631515407,1.95164,3819.6,3819.5,2.00395]
[1753631516211,1.4282,3819.6,3819.5,2.00395]
[1753631517513,1.95164,3819.6,3819.5,2.00395]
[1753631518721,1.4282,3819.6,3819.5,2.00395]
[1753631519409,0.7307,3819.8,3819.7,1.99073]
[1753631519610,1.72961,3819.8,3819.7,1.99073]
[1753631519809,1.91901,3819.8,3819.7,1.99073]
[1753631520210,0.52343,3819.7,3819.6,0.52344]
[1753631520519,2.21286,3819.6,3819.5,1.50265]
[1753631520807,2.21286,3819.6,3819.5,1.99075]
[1753631521516,2.21286,3819.6,3819.5,0.4816]
[1753631521710,2.21286,3819.6,3819.5,0.80806]
[1753631522011,2.21286,3819.6,3819.4,3.2078]
[1753631522012,0.52346,3819.5,3819.4,3.2078]
[1753631522219,0.52346,3819.5,3819.2,0.80809]
[1753631522220,2.21288,3819.3,3819.2,0.669]
[1753631522418,1.6894,3819.3,3819.2,22.4265]
[1753631522715,1.3956,3819.3,3819.2,23.2248]
[1753631523014,1.3956,3819.6,3819.5,0.6799]
[1753631523209,1.62704,3819.6,3819.5,1.4673]
[1753631523411,2.21284,3819.6,3819.5,1.4673]
[1753631523613,2.21284,3819.6,3819.5,1.99076]
[1753631523814,1.91904,3819.6,3819.5,1.99076]
[1753631524920,1.91904,3819.6,3819.5,1.4673]
[1753631525123,2.21284,3819.6,3819.5,1.4673]
[1753631525822,2.21288,3819.3,3819.2,21.903]
[1753631527218,2.21288,3819.3,3819.2,21.234]
[1753631527420,2.95716384,3819.3,3819.2,21.234]
[1753631531419,2.21288,3819.3,3819.2,21.234]
[1753631531624,2.21288,3819.3,3819.2,21.5186]
[1753631532124,2.21288,3819.3,3819.2,21.234]
[1753631532424,2.21288,3819.3,3819.2,21.7156]
[1753631532619,2.21288,3819.3,3819.2,22.4058]
[1753631533524,2.21288,3819.3,3819.2,21.903]
[1753631534025,2.21288,3819.3,3819.2,22.2132]
[1753631534921,2.21288,3819.3,3819.2,21.903]
[1753631535226,2.21288,3819.3,3819.2,21.7156]
[1753631537721,2.21288,3819.3,3819.2,22.2132]
[1753631538021,2.21288,3819.3,3819.2,22.4058]
[1753631538222,2.21288,3819.3,3819.2,22.7013]
[1753631539725,1.91908,3819.3,3819.2,22.7013]
[1753631543129,2.21288,3819.3,3819.2,22.2132]
[1753631543327,2.21288,3819.3,3819.2,21.903]
[1753631544526,2.21288,3819.3,3819.2,21.234]
[1753631544831,2.95716384,3819.3,3819.2,21.234]
[1753631545031,2.95716384,3819.3,3819.2,21.5186]
[1753631545432,2.95716384,3819.3,3819.2,21.7156]
[1753631547034,3.70224115,3819.3,3819.2,21.7156]
[1753631547626,2.47135731,3819.3,3819.2,22.6931]
[1753631547932,1.53688,3819.3,3819.2,22.6931]
[1753631548134,1.73878,3819.3,3819.2,22.6931]
[1753631548334,0.52348,3819.4,3819.2,22.6931]
[1753631548540,0.52348,3819.4,3819.3,1.4732]
[1753631548832,0.52344,3819.7,3819.6,1.19654]
[1753631549035,0.52344,3819.7,3819.6,23.14364]
[1753631549235,1.26840219,3819.7,3819.6,23.14364]
[1753631549739,1.26840219,3819.7,3819.6,22.6202]
[1753631550632,2.70550219,3819.7,3819.6,22.6202]
[1753631550838,6.21320219,3819.7,3819.6,21.6409]
[1753631551843,6.21320219,3819.7,3819.6,21.147]
[1753631553545,1.0074,3819.2,3819.1,0.4939]
[1753631553847,2.2605,3819.2,3819.1,21.8372]
[1753631554043,1.9606,3819.2,3819.1,22.6182]
[1753631557742,0.52349,3819.2,3819.1,23.14169]
[1753631557949,0.52349,3819.3,3819.2,1.99668]
[1753631558748,0.52347,3819.4,3819.3,1.19656]
[1753631559050,0.52347,3819.4,3819.3,1.99666]
[1753631559645,3.2078,3819.7,3819.6,1.21564]
[1753631559950,0.52343,3819.8,3819.7,1.4732]
[1753631560353,1.25623,3819.8,3819.7,1.4732]
[1753631560550,1.45813,3819.8,3819.7,1.4732]
[1753631560852,1.45813,3819.8,3819.7,1.99663]
[1753631561451,2.20302865,3819.8,3819.7,1.99663]
[1753631561751,1.45813,3819.8,3819.7,1.4732]
[1753631561953,1.45813,3819.8,3819.7,1.99663]
[1753631562447,3.9406,3820.3,3820.2,0.6731]
[1753631562653,4.75786071,3820.3,3820.2,1.4732]
[1753631562950,4.01315,3820.3,3820.2,1.4732]
[1753631563361,4.66585,3820.3,3820.2,1.4732]
[1753631563564,5.16825,3820.3,3820.2,1.4732]
[1753631567364,0.52335,3820.3,3820.2,1.4732]
[1753631568159,0.52335,3820.3,3820.2,1.99656]
[1753631569263,0.52335,3820.3,3820.2,1.4732]
[1753631569464,0.52335,3820.3,3820.2,1.99656]
[1753631569964,0.52335,3820.3,3820.2,1.4732]
[1753631570561,0.52335,3820.3,3820.2,1.99656]
[1753631570864,0.52334,3820.4,3820.3,1.99653]
[1753631572264,0.52334,3820.4,3820.3,1.4732]
[1753631572469,0.52333,3820.5,3820.4,1.99652]
[1753631572664,0.52333,3820.5,3820.4,23.13552]
[1753631574165,0.52333,3820.5,3820.4,22.6122]
[1753631575066,1.66333,3820.5,3820.4,22.6122]
[1753631575259,2.26033,3820.5,3820.4,22.6122]
[1753631575463,2.26033,3820.5,3820.4,22.1331]
[1753631576071,2.26033,3820.5,3820.4,22.3258]
[1753631577666,2.26033,3820.5,3820.4,21.8312]
[1753631578572,2.26033,3820.5,3820.4,22.3188]
[1753631580373,2.26033,3820.5,3820.4,22.1262]
[1753631580573,2.26033,3820.5,3820.4,0.4939]
[1753631580776,2.26033,3820.5,3820.1,0.295]
[1753631580777,1.19626,3820.2,3820.1,0.307]
[1753631580975,2.23206,3820.2,3820.1,21.441]
[1753631581176,2.23206,3820.2,3820.1,21.6432]
[1753631581471,2.23206,3820.2,3820.1,22.1339]
[1753631582070,2.23206,3820.2,3820.1,21.6432]
[1753631582268,2.23206,3820.2,3820.1,21.8389]
[1753631582469,2.23206,3820.2,3820.1,22.1339]
[1753631582975,5.43986,3820.2,3820.1,21.134]
[1753631583375,2.23209,3820.0,3819.9,0.7049]
[1753631583677,2.23209,3820.0,3819.9,21.6422]
[1753631585776,2.23209,3820.0,3819.9,21.9372]
[1753631585977,2.23209,3820.0,3819.9,21.3352]
[1753631586371,2.23209,3820.0,3819.9,21.6422]
[1753631586777,2.23209,3820.0,3819.9,22.1329]
[1753631588075,2.23209,3820.0,3819.9,22.3255]
[1753631589876,2.23209,3820.0,3819.9,22.1329]
[1753631590077,2.23209,3820.0,3819.9,21.8379]
[1753631592579,2.23209,3820.0,3819.9,22.1329]
[1753631592878,2.23209,3820.0,3819.9,21.8379]
[1753631593072,2.23209,3820.0,3819.9,21.133]
[1753631593273,2.97647181,3820.0,3819.9,21.133]
[1753631593869,0.52343,3819.7,3819.6,0.307]
[1753631594070,2.23217,3819.4,3819.3,0.5092]
[1753631594274,2.23217,3819.4,3819.3,21.6402]
[1753631594882,2.23217,3819.4,3819.3,22.1309]
[1753631595387,0.52347,3819.4,3819.3,22.6239]
[1753631595778,0.52347,3819.4,3819.3,23.14738]
[1753631596084,4.4177,3819.8,3819.7,0.6983]
[1753631596280,3.73121,3819.8,3819.7,22.6239]
[1753631596784,3.73121,3819.8,3819.7,23.14733]
[1753631597278,3.73121,3819.8,3819.7,22.6239]
[1753631597478,3.73121,3819.8,3819.7,23.14733]
[1753631597983,3.73121,3819.8,3819.7,22.6239]
[1753631598578,3.73121,3819.8,3819.7,23.14732]
[1753631599275,3.73121,3819.8,3819.7,22.6239]
[1753631599875,5.13091,3819.8,3819.7,22.6239]
[1753631601388,5.43991,3819.8,3819.7,21.8359]
[1753631601885,5.43991,3819.8,3819.7,22.1309]
[1753631602386,5.43991,3819.8,3819.7,22.3235]
[1753631603086,5.43991,3819.8,3819.7,22.6239]
[1753631604186,5.43991,3819.8,3819.7,21.8359]
[1753631604392,5.43991,3819.8,3819.7,21.6402]
[1753631604583,5.43991,3819.8,3819.7,21.131]
[1753631606186,2.23215,3819.5,3819.4,0.307]
[1753631606386,2.23215,3819.5,3819.4,21.434]
[1753631606586,2.23215,3819.5,3819.4,21.6362]
[1753631606783,2.23215,3819.5,3819.4,21.127]
[1753631608091,2.23215,3819.5,3819.4,20.8166]
[1753631608286,1.90305,3818.8,3818.7,1.178]
[1753631608490,2.19365,3818.8,3818.7,22.304]
[1753631608689,2.19365,3818.8,3818.7,22.6028]
[1753631608890,2.19365,3818.8,3818.7,22.1111]
[1753631609285,2.19365,3818.8,3818.7,22.304]
[1753631609695,2.19365,3818.8,3818.7,22.1111]
[1753631610297,0.52363,3818.2,3818.1,38.5008]
[1753631610490,0.52363,3818.2,3818.1,59.6268]
[1753631611998,1.24363,3818.2,3818.1,59.6268]
[1753631612196,1.43183,3818.2,3818.1,59.6268]
[1753631612399,1.71593,3818.2,3818.1,59.6268]
[1753631612595,2.19373,3818.2,3818.1,22.304]
[1753631612791,2.19377,3817.9,3817.8,0.98592637]
[1753631612996,2.19377,3817.9,3817.8,22.30492637]
[1753631613195,2.19377,3817.9,3817.8,22.49782637]
[1753631614496,5.40157,3817.9,3817.8,22.30492637]
[1753631614700,5.40157,3817.9,3817.8,22.00132637]
[1753631616796,5.40157,3817.9,3817.8,1.17892637]
[1753631617798,4.63967,3817.9,3817.8,1.67062637]
[1753631618497,4.02447,3817.9,3817.8,1.67062637]
[1753631619202,3.2078,3817.9,3817.8,2.19431637]
[1753631619404,3.2078,3818.7,3818.2,0.679]
[1753631619612,0.427,3819.0,3818.7,0.7978]
[1753631619812,1.24352,3819.0,3818.9,1.4768]
[1753631620718,3.2078,3819.1,3818.9,1.4768]
[1753631620916,3.73126,3819.5,3819.3,0.52347]
[1753631621221,3.73125,3819.5,3819.4,22.6048]
[1753631621520,4.02425,3819.5,3819.4,22.6048]
[1753631621916,4.45125,3819.5,3819.4,22.6048]
[1753631623616,1.24345,3819.5,3819.4,22.6048]
[1753631624019,1.43165,3819.5,3819.4,22.6048]
[1753631624317,0.52345,3819.5,3819.4,22.6048]
[1753631624515,0.52345,3819.5,3819.4,23.12827]
[1753631624708,0.52343,3819.7,3819.6,0.679]
[1753631624908,0.52343,3819.7,3819.6,1.4768]